[Event "Titled Tuesday Blitz June 1 2021"]
[White "Laxman, R.R."]
[Black "Fayzullaev, Akmal"]
[WhiteFideId "5005361"]
[BlackFideId "14200554"]
[WhiteElo "2476"]
[BlackElo "2264"]
[Result "0-1"]
[Round "02"]
[TimeControl "180+1"]
[Date "2021.06.01"]
[WhiteClock "0:00:17"]
[BlackClock "0:00:30"]

1. d4 {[%clk 0:03:00]}  Nf6 {[%clk 0:02:59]} 2. Nf3 {[%clk 0:02:59]}  g6 {[%clk 0:03:00]} 3. c4 {[%clk 0:02:59]}  Bg7 {[%clk 0:03:01]} 4. Nc3 {[%clk 0:02:59]}  O-O {[%clk 0:03:02]} 5. e4 {[%clk 0:02:59]}  d6 {[%clk 0:03:03]} 6. Be2 {[%clk 0:03:00]}  Bg4 {[%clk 0:03:01]} 7. O-O {[%clk 0:03:01]}  Nfd7 {[%clk 0:03:00]} 8. Be3 {[%clk 0:03:01]}  c5 {[%clk 0:02:58]} 9. d5 {[%clk 0:03:01]}  Na6 {[%clk 0:02:57]} 10. Qd2 {[%clk 0:03:01]}  Nc7 {[%clk 0:02:57]} 11. h3 {[%clk 0:03:00]}  Bxf3 {[%clk 0:02:57]} 12. Bxf3 {[%clk 0:03:01]}  a6 {[%clk 0:02:57]} 13. a4 {[%clk 0:03:01]}  Qb8 {[%clk 0:02:58]} 14. Be2 {[%clk 0:02:57]}  e6 {[%clk 0:02:58]} 15. f4 {[%clk 0:02:50]}  exd5 {[%clk 0:02:58]} 16. exd5 {[%clk 0:02:49]}  Re8 {[%clk 0:02:58]} 17. Kh1 {[%clk 0:02:48]}  f5 {[%clk 0:02:49]} 18. Bd3 {[%clk 0:02:47]}  Nf6 {[%clk 0:02:48]} 19. Rae1 {[%clk 0:02:43]}  b5 {[%clk 0:02:47]} 20. cxb5 {[%clk 0:02:42]}  axb5 {[%clk 0:02:45]} 21. axb5 {[%clk 0:02:42]}  Qb7 {[%clk 0:02:28]} 22. Bc4 {[%clk 0:02:42]}  Ne4 {[%clk 0:02:24]} 23. Nxe4 {[%clk 0:02:40]}  Rxe4 {[%clk 0:02:24]} 24. b3 {[%clk 0:02:40]}  Nxb5 {[%clk 0:02:24]} 25. Bxc5 {[%clk 0:02:36]}  Bc3 {[%clk 0:02:21]} 26. Qd3 {[%clk 0:02:29]}  Rxe1 {[%clk 0:02:16]} 27. Rxe1 {[%clk 0:02:25]}  Bxe1 {[%clk 0:02:17]} 28. Bxb5 {[%clk 0:02:25]}  Ra1 {[%clk 0:01:46]} 29. Kh2 {[%clk 0:02:09]}  dxc5 {[%clk 0:01:28]} 30. d6 {[%clk 0:02:10]}  Qb8 {[%clk 0:01:28]} 31. Bc4+ {[%clk 0:02:06]}  Kg7 {[%clk 0:01:22]} 32. Qd5 {[%clk 0:02:00]}  Kh6 {[%clk 0:01:21]} 33. Qe5 {[%clk 0:01:59]}  Ra8 {[%clk 0:01:07]} 34. g4 {[%clk 0:01:52]}  Qe8 {[%clk 0:00:51]} 35. Be6 {[%clk 0:01:17]}  Ra2+ {[%clk 0:00:42]} 36. Kh1 {[%clk 0:01:15]}  Bg3 {[%clk 0:00:37]} 37. gxf5 {[%clk 0:00:31]}  Qa8+ {[%clk 0:00:31]} 38. Bd5 {[%clk 0:00:31]}  Rh2+ {[%clk 0:00:31]} 39. Kg1 {[%clk 0:00:30]}  Qa2 {[%clk 0:00:31]} 40. Qe3 {[%clk 0:00:17]}  Bf2+ {[%clk 0:00:30]} 0-1


[Site "https://www.chess.com"]

[Event "Titled Tuesday Blitz June 1 2021"]
[White "Lazavik, Denis"]
[Black "Gormally, Daniel W"]
[WhiteFideId "13515110"]
[BlackFideId "406465"]
[WhiteElo "2436"]
[BlackElo "2543"]
[Result "1-0"]
[Round "02"]
[TimeControl "180+1"]
[Date "2021.06.01"]
[WhiteClock "0:00:22"]
[BlackClock "0:00:28"]

1. d4 {[%clk 0:02:59]}  Nf6 {[%clk 0:02:59]} 2. c4 {[%clk 0:02:59]}  g6 {[%clk 0:03:00]} 3. g3 {[%clk 0:02:55]}  c5 {[%clk 0:02:58]} 4. d5 {[%clk 0:02:52]}  b5 {[%clk 0:02:58]} 5. cxb5 {[%clk 0:02:51]}  a6 {[%clk 0:02:58]} 6. bxa6 {[%clk 0:02:51]}  Bg7 {[%clk 0:02:56]} 7. Nc3 {[%clk 0:02:50]}  O-O {[%clk 0:02:50]} 8. Bg2 {[%clk 0:02:50]}  Qa5 {[%clk 0:02:50]} 9. Bd2 {[%clk 0:02:28]}  Qxa6 {[%clk 0:02:39]} 10. Nh3 {[%clk 0:02:07]}  d6 {[%clk 0:02:39]} 11. Nf4 {[%clk 0:02:05]}  Nbd7 {[%clk 0:02:39]} 12. O-O {[%clk 0:02:03]}  Ne5 {[%clk 0:02:38]} 13. b3 {[%clk 0:02:01]}  h6 {[%clk 0:02:13]} 14. h4 {[%clk 0:01:47]}  Bf5 {[%clk 0:02:08]} 15. e4 {[%clk 0:01:38]}  Bg4 {[%clk 0:02:08]} 16. f3 {[%clk 0:01:37]}  Bd7 {[%clk 0:02:08]} 17. Qe2 {[%clk 0:01:31]}  Rfb8 {[%clk 0:01:45]} 18. Qxa6 {[%clk 0:01:27]}  Rxa6 {[%clk 0:01:46]} 19. Rfb1 {[%clk 0:01:25]}  Ne8 {[%clk 0:01:42]} 20. Kf2 {[%clk 0:01:21]}  g5 {[%clk 0:01:27]} 21. hxg5 {[%clk 0:01:19]}  hxg5 {[%clk 0:01:27]} 22. Nfe2 {[%clk 0:01:17]}  Nd3+ {[%clk 0:01:24]} 23. Ke3 {[%clk 0:01:11]}  Nb4 {[%clk 0:01:24]} 24. Rc1 {[%clk 0:01:11]}  f5 {[%clk 0:01:08]} 25. a3 {[%clk 0:01:00]}  Rba8 {[%clk 0:01:09]} 26. a4 {[%clk 0:00:48]}  fxe4 {[%clk 0:00:59]} 27. fxe4 {[%clk 0:00:43]}  Nf6 {[%clk 0:01:00]} 28. Bf3 {[%clk 0:00:37]}  Ng4+ {[%clk 0:01:00]} 29. Bxg4 {[%clk 0:00:37]}  Bxg4 {[%clk 0:01:01]} 30. Rab1 {[%clk 0:00:35]}  Re8 {[%clk 0:00:54]} 31. Nb5 {[%clk 0:00:33]}  Rb6 {[%clk 0:00:34]} 32. Bxb4 {[%clk 0:00:31]}  cxb4 {[%clk 0:00:34]} 33. Ned4 {[%clk 0:00:24]}  e6 {[%clk 0:00:35]} 34. dxe6 {[%clk 0:00:24]}  Bxe6 {[%clk 0:00:35]} 35. Nc7 {[%clk 0:00:24]}  Bf7 {[%clk 0:00:28]} 36. Nxe8 {[%clk 0:00:23]}  Bxe8 {[%clk 0:00:29]} 37. Rc8 {[%clk 0:00:22]}  Kf7 {[%clk 0:00:29]} 38. Rf1+ {[%clk 0:00:22]}  Bf6 {[%clk 0:00:28]} 39. Rxf6+ {[%clk 0:00:21]}  Kxf6 {[%clk 0:00:28]} 40. Rxe8 {[%clk 0:00:22]} 1-0


[Site "https://www.chess.com"]

[Event "Titled Tuesday Blitz June 1 2021"]
[White "Le, Tuan Minh"]
[Black "Gurvich, Vitaly"]
[WhiteFideId "12401153"]
[BlackFideId "24164852"]
[WhiteElo "2450"]
[BlackElo "2252"]
[Result "1-0"]
[Round "02"]
[TimeControl "180+1"]
[Date "2021.06.01"]
[WhiteClock "0:00:04"]
[BlackClock "0:00:01"]

1. d4 {[%clk 0:03:00]}  Nf6 {[%clk 0:02:56]} 2. Nf3 {[%clk 0:03:00]}  e6 {[%clk 0:02:55]} 3. Bf4 {[%clk 0:02:59]}  b6 {[%clk 0:02:53]} 4. e3 {[%clk 0:02:58]}  Bb7 {[%clk 0:02:52]} 5. Bd3 {[%clk 0:02:58]}  g6 {[%clk 0:02:51]} 6. h3 {[%clk 0:02:58]}  Bg7 {[%clk 0:02:51]} 7. O-O {[%clk 0:02:52]}  d6 {[%clk 0:02:42]} 8. a4 {[%clk 0:02:49]}  a6 {[%clk 0:02:42]} 9. c3 {[%clk 0:02:48]}  O-O {[%clk 0:02:41]} 10. Nbd2 {[%clk 0:02:48]}  Nbd7 {[%clk 0:02:40]} 11. Bh2 {[%clk 0:02:46]}  Re8 {[%clk 0:02:32]} 12. e4 {[%clk 0:02:46]}  e5 {[%clk 0:02:31]} 13. Re1 {[%clk 0:02:46]}  Nh5 {[%clk 0:02:30]} 14. Nf1 {[%clk 0:02:34]}  Nf8 {[%clk 0:02:27]} 15. Qc2 {[%clk 0:02:24]}  Ne6 {[%clk 0:02:07]} 16. dxe5 {[%clk 0:02:23]}  dxe5 {[%clk 0:02:07]} 17. Bc4 {[%clk 0:02:19]}  Nef4 {[%clk 0:01:56]} 18. Ne3 {[%clk 0:02:18]}  c6 {[%clk 0:01:54]} 19. Rad1 {[%clk 0:02:12]}  Qe7 {[%clk 0:01:50]} 20. b4 {[%clk 0:02:02]}  b5 {[%clk 0:01:49]} 21. Bb3 {[%clk 0:02:02]}  Rad8 {[%clk 0:01:46]} 22. axb5 {[%clk 0:01:50]}  axb5 {[%clk 0:01:44]} 23. h4 {[%clk 0:01:44]}  Bf6 {[%clk 0:01:04]} 24. Ng4 {[%clk 0:01:42]}  Kg7 {[%clk 0:01:02]} 25. g3 {[%clk 0:01:34]}  Rxd1 {[%clk 0:00:33]} 26. Rxd1 {[%clk 0:01:25]}  Ne6 {[%clk 0:00:17]} 27. Qd2 {[%clk 0:01:22]}  Rd8 {[%clk 0:00:16]} 28. Qh6+ {[%clk 0:01:22]}  Kg8 {[%clk 0:00:15]} 29. Nxf6+ {[%clk 0:00:37]}  Qxf6 {[%clk 0:00:07]} 30. Rxd8+ {[%clk 0:00:38]}  Qxd8 {[%clk 0:00:08]} 31. Nxe5 {[%clk 0:00:35]}  Qf6 {[%clk 0:00:07]} 32. f4 {[%clk 0:00:12]}  Nhg7 {[%clk 0:00:03]} 33. Kf1 {[%clk 0:00:05]}  Qd8 {[%clk 0:00:01]} 34. Bg1 {[%clk 0:00:04]} 1-0


[Site "https://www.chess.com"]

[Event "Titled Tuesday Blitz June 1 2021"]
[White "Lehtosaari, Mauri"]
[Black "Sammed_Shete"]
[WhiteFideId "501999"]
[WhiteElo "2448"]
[BlackElo "2699"]
[Result "0-1"]
[Round "02"]
[TimeControl "180+1"]
[Date "2021.06.01"]
[WhiteClock "0:00:21"]
[BlackClock "0:00:12"]

1. d4 {[%clk 0:03:00]}  Nf6 {[%clk 0:02:59]} 2. Nf3 {[%clk 0:03:01]}  e6 {[%clk 0:02:58]} 3. Bg5 {[%clk 0:03:00]}  d5 {[%clk 0:02:57]} 4. Nbd2 {[%clk 0:03:00]}  Be7 {[%clk 0:02:54]} 5. e3 {[%clk 0:03:00]}  O-O {[%clk 0:02:52]} 6. Bd3 {[%clk 0:03:00]}  b6 {[%clk 0:02:51]} 7. O-O {[%clk 0:03:00]}  Ba6 {[%clk 0:02:52]} 8. Bxa6 {[%clk 0:02:59]}  Nxa6 {[%clk 0:02:51]} 9. Ne5 {[%clk 0:03:00]}  Nb8 {[%clk 0:02:42]} 10. c3 {[%clk 0:02:28]}  c5 {[%clk 0:02:29]} 11. a4 {[%clk 0:02:27]}  Qc7 {[%clk 0:02:27]} 12. f4 {[%clk 0:02:26]}  Nc6 {[%clk 0:02:02]} 13. Qf3 {[%clk 0:02:19]}  h6 {[%clk 0:01:56]} 14. Bh4 {[%clk 0:02:18]}  Nxe5 {[%clk 0:01:32]} 15. fxe5 {[%clk 0:02:16]}  Nh7 {[%clk 0:01:32]} 16. Bxe7 {[%clk 0:02:10]}  Qxe7 {[%clk 0:01:33]} 17. a5 {[%clk 0:01:50]}  Rab8 {[%clk 0:01:26]} 18. axb6 {[%clk 0:01:49]}  axb6 {[%clk 0:01:23]} 19. Ra2 {[%clk 0:01:23]}  Ra8 {[%clk 0:01:17]} 20. Rxa8 {[%clk 0:01:18]}  Rxa8 {[%clk 0:01:16]} 21. e4 {[%clk 0:01:18]}  Rd8 {[%clk 0:01:07]} 22. exd5 {[%clk 0:01:17]}  Rxd5 {[%clk 0:01:05]} 23. Qe3 {[%clk 0:01:13]}  cxd4 {[%clk 0:00:57]} 24. cxd4 {[%clk 0:01:12]}  Qb4 {[%clk 0:00:50]} 25. Nb3 {[%clk 0:00:53]}  Nf8 {[%clk 0:00:37]} 26. Qc3 {[%clk 0:00:40]}  Rb5 {[%clk 0:00:22]} 27. Rf3 {[%clk 0:00:39]}  Ng6 {[%clk 0:00:19]} 28. Qc8+ {[%clk 0:00:35]}  Qf8 {[%clk 0:00:18]} 29. Qc2 {[%clk 0:00:36]}  Rb4 {[%clk 0:00:17]} 30. h3 {[%clk 0:00:32]}  Ne7 {[%clk 0:00:17]} 31. Nd2 {[%clk 0:00:28]}  Rxd4 {[%clk 0:00:14]} 32. Ne4 {[%clk 0:00:27]}  Nf5 {[%clk 0:00:12]} 33. Ng3 {[%clk 0:00:20]}  Nxg3 {[%clk 0:00:12]} 34. Rxg3 {[%clk 0:00:21]}  Rd5 {[%clk 0:00:12]} 35. Qe4 {[%clk 0:00:20]}  Qc5+ {[%clk 0:00:11]} 36. Kh1 {[%clk 0:00:20]}  Rxe5 {[%clk 0:00:11]} 37. Qa8+ {[%clk 0:00:20]}  Kh7 {[%clk 0:00:12]} 38. Qf3 {[%clk 0:00:21]}  Re1+ {[%clk 0:00:12]} 0-1


[Site "https://www.chess.com"]

[Event "Titled Tuesday Blitz June 1 2021"]
[White "Maly, Alexey"]
[Black "Gurevich, Dmitry"]
[WhiteFideId "14103184"]
[BlackFideId "2000407"]
[WhiteElo "2314"]
[BlackElo "2506"]
[Result "1-0"]
[Round "02"]
[TimeControl "180+1"]
[Date "2021.06.01"]
[WhiteClock "0:02:37"]
[BlackClock "0:02:19"]

1. d4 {[%clk 0:03:00]}  Nf6 {[%clk 0:02:59]} 2. c4 {[%clk 0:03:00]}  a6 {[%clk 0:02:58]} 3. e3 {[%clk 0:02:59]}  e6 {[%clk 0:02:57]} 4. Nf3 {[%clk 0:02:59]}  c5 {[%clk 0:02:57]} 5. Nbd2 {[%clk 0:02:56]}  d5 {[%clk 0:02:54]} 6. dxc5 {[%clk 0:02:55]}  Bxc5 {[%clk 0:02:53]} 7. a3 {[%clk 0:02:56]}  O-O {[%clk 0:02:50]} 8. b4 {[%clk 0:02:56]}  Be7 {[%clk 0:02:49]} 9. Bb2 {[%clk 0:02:56]}  Nc6 {[%clk 0:02:48]} 10. Be2 {[%clk 0:02:55]}  dxc4 {[%clk 0:02:47]} 11. Bxc4 {[%clk 0:02:54]}  b5 {[%clk 0:02:47]} 12. Be2 {[%clk 0:02:54]}  Bb7 {[%clk 0:02:46]} 13. O-O {[%clk 0:02:54]}  Qb6 {[%clk 0:02:42]} 14. Qb3 {[%clk 0:02:53]}  Rfd8 {[%clk 0:02:38]} 15. Rfd1 {[%clk 0:02:48]}  h6 {[%clk 0:02:37]} 16. Rac1 {[%clk 0:02:48]}  a5 {[%clk 0:02:24]} 17. bxa5 {[%clk 0:02:46]}  Rxa5 {[%clk 0:02:23]} 18. Nc4 {[%clk 0:02:41]}  Rxd1+ {[%clk 0:02:19]} 19. Rxd1 {[%clk 0:02:37]} 1-0


[Site "https://www.chess.com"]

[Event "Titled Tuesday Blitz June 1 2021"]
[White "Manafov, Vugar"]
[Black "Shubenkova, Veronika"]
[WhiteFideId "13410814"]
[BlackFideId "44124040"]
[WhiteElo "2274"]
[BlackElo "1895"]
[Result "1-0"]
[Round "02"]
[TimeControl "180+1"]
[Date "2021.06.01"]
[WhiteClock "0:01:05"]
[BlackClock "0:00:52"]

1. Nf3 {[%clk 0:03:00]}  d5 {[%clk 0:03:00]} 2. g3 {[%clk 0:02:53]}  Nf6 {[%clk 0:02:59]} 3. Bg2 {[%clk 0:02:54]}  g6 {[%clk 0:02:59]} 4. O-O {[%clk 0:02:55]}  Bg7 {[%clk 0:02:59]} 5. d3 {[%clk 0:02:56]}  O-O {[%clk 0:02:59]} 6. Nc3 {[%clk 0:02:57]}  c6 {[%clk 0:02:58]} 7. e4 {[%clk 0:02:57]}  b6 {[%clk 0:02:56]} 8. Nd2 {[%clk 0:02:57]}  Bb7 {[%clk 0:02:56]} 9. f4 {[%clk 0:02:57]}  dxe4 {[%clk 0:02:55]} 10. dxe4 {[%clk 0:02:57]}  Nfd7 {[%clk 0:02:54]} 11. Nc4 {[%clk 0:02:55]}  Qc7 {[%clk 0:02:53]} 12. a4 {[%clk 0:02:53]}  Na6 {[%clk 0:02:53]} 13. Be3 {[%clk 0:02:50]}  Rad8 {[%clk 0:02:52]} 14. Qe2 {[%clk 0:02:50]}  Ndc5 {[%clk 0:02:52]} 15. Rfd1 {[%clk 0:02:48]}  e6 {[%clk 0:02:43]} 16. e5 {[%clk 0:02:47]}  Nb4 {[%clk 0:02:38]} 17. Bxc5 {[%clk 0:02:42]}  bxc5 {[%clk 0:02:38]} 18. Ne4 {[%clk 0:02:43]}  Nd5 {[%clk 0:02:10]} 19. Nxc5 {[%clk 0:02:37]}  Bc8 {[%clk 0:02:10]} 20. c3 {[%clk 0:02:28]}  a5 {[%clk 0:02:10]} 21. Kh1 {[%clk 0:02:23]}  Rfe8 {[%clk 0:02:08]} 22. Rd2 {[%clk 0:02:23]}  f6 {[%clk 0:02:07]} 23. exf6 {[%clk 0:02:17]}  Bxf6 {[%clk 0:02:06]} 24. Re1 {[%clk 0:02:17]}  Qa7 {[%clk 0:02:03]} 25. Nd3 {[%clk 0:02:09]}  Ba6 {[%clk 0:02:01]} 26. Nce5 {[%clk 0:02:09]}  Ne7 {[%clk 0:01:54]} 27. Qd1 {[%clk 0:01:57]}  Qb6 {[%clk 0:01:46]} 28. Ng4 {[%clk 0:01:50]}  Bg7 {[%clk 0:01:46]} 29. Nde5 {[%clk 0:01:50]}  Nd5 {[%clk 0:01:44]} 30. Qf3 {[%clk 0:01:36]}  h5 {[%clk 0:01:40]} 31. Nf2 {[%clk 0:01:30]}  Bxe5 {[%clk 0:01:34]} 32. Rxe5 {[%clk 0:01:31]}  Nf6 {[%clk 0:01:29]} 33. Rxd8 {[%clk 0:01:27]}  Qxd8 {[%clk 0:01:24]} 34. Qxc6 {[%clk 0:01:26]}  Bc8 {[%clk 0:01:24]} 35. Re2 {[%clk 0:01:17]}  Ng4 {[%clk 0:01:23]} 36. Qf3 {[%clk 0:01:17]}  e5 {[%clk 0:01:11]} 37. Nxg4 {[%clk 0:01:16]}  Bxg4 {[%clk 0:01:11]} 38. Qd5+ {[%clk 0:01:17]}  Kg7 {[%clk 0:01:10]} 39. Rxe5 {[%clk 0:01:16]}  Rxe5 {[%clk 0:00:59]} 40. Qxd8 {[%clk 0:01:13]}  Re1+ {[%clk 0:00:59]} 41. Bf1 {[%clk 0:01:14]}  Rxf1+ {[%clk 0:00:58]} 42. Kg2 {[%clk 0:01:14]}  Rb1 {[%clk 0:00:57]} 43. Qc7+ {[%clk 0:01:06]}  Kh6 {[%clk 0:00:57]} 44. Qb8 {[%clk 0:01:06]}  Ra1 {[%clk 0:00:52]} 45. Qh8# {[%clk 0:01:05]} 1-0


[Site "https://www.chess.com"]

[Event "Titled Tuesday Blitz June 1 2021"]
[White "Martinez Alcantara, Jose Eduardo"]
[Black "Yap, Kim Steven"]
[WhiteFideId "3805662"]
[BlackFideId "5202809"]
[WhiteElo "2690"]
[BlackElo "2405"]
[Result "1-0"]
[Round "02"]
[TimeControl "180+1"]
[Date "2021.06.01"]
[WhiteClock "0:00:20"]
[BlackClock "0:00:00"]

1. e4 {[%clk 0:03:00]}  g6 {[%clk 0:02:59]} 2. d4 {[%clk 0:03:00]}  Bg7 {[%clk 0:02:59]} 3. c3 {[%clk 0:03:00]}  d6 {[%clk 0:02:58]} 4. Bd3 {[%clk 0:02:53]}  Nc6 {[%clk 0:02:58]} 5. Nf3 {[%clk 0:02:44]}  e5 {[%clk 0:02:57]} 6. Bg5 {[%clk 0:02:40]}  Nf6 {[%clk 0:02:51]} 7. Nbd2 {[%clk 0:02:24]}  h6 {[%clk 0:02:50]} 8. Bh4 {[%clk 0:02:24]}  O-O {[%clk 0:02:44]} 9. dxe5 {[%clk 0:02:18]}  Nxe5 {[%clk 0:02:37]} 10. Nxe5 {[%clk 0:02:18]}  dxe5 {[%clk 0:02:36]} 11. Qe2 {[%clk 0:02:16]}  Bg4 {[%clk 0:02:21]} 12. f3 {[%clk 0:01:56]}  Be6 {[%clk 0:02:18]} 13. Bc4 {[%clk 0:01:55]}  Qe7 {[%clk 0:02:11]} 14. O-O {[%clk 0:01:41]}  Rfd8 {[%clk 0:02:10]} 15. Bxe6 {[%clk 0:01:39]}  Qxe6 {[%clk 0:02:08]} 16. Bf2 {[%clk 0:01:24]}  Rd7 {[%clk 0:01:51]} 17. Nc4 {[%clk 0:01:17]}  b6 {[%clk 0:01:45]} 18. a4 {[%clk 0:01:16]}  Bf8 {[%clk 0:01:34]} 19. g3 {[%clk 0:01:08]}  Ne8 {[%clk 0:01:16]} 20. Ne3 {[%clk 0:01:07]}  c6 {[%clk 0:01:08]} 21. Qc4 {[%clk 0:01:03]}  Nc7 {[%clk 0:00:52]} 22. Rfd1 {[%clk 0:01:00]}  Rad8 {[%clk 0:00:42]} 23. Rxd7 {[%clk 0:00:58]}  Rxd7 {[%clk 0:00:41]} 24. Qxe6 {[%clk 0:00:55]}  Nxe6 {[%clk 0:00:39]} 25. Nc4 {[%clk 0:00:56]}  f6 {[%clk 0:00:38]} 26. Kf1 {[%clk 0:00:44]}  Bc5 {[%clk 0:00:36]} 27. Be1 {[%clk 0:00:26]}  Kf7 {[%clk 0:00:30]} 28. Ke2 {[%clk 0:00:26]}  h5 {[%clk 0:00:28]} 29. b4 {[%clk 0:00:21]}  Be7 {[%clk 0:00:27]} 30. Bf2 {[%clk 0:00:21]}  Bd8 {[%clk 0:00:21]} 31. Be3 {[%clk 0:00:21]}  Bc7 {[%clk 0:00:19]} 32. Nb2 {[%clk 0:00:21]}  Nd8 {[%clk 0:00:15]} 33. a5 {[%clk 0:00:19]}  bxa5 {[%clk 0:00:04]} 34. bxa5 {[%clk 0:00:20]}  a6 {[%clk 0:00:00]} 35. Nd3 {[%clk 0:00:20]} 1-0


[Site "https://www.chess.com"]

[Event "Titled Tuesday Blitz June 1 2021"]
[White "Migot, Tangi"]
[Black "Kuzubov, Yuriy"]
[WhiteFideId "662445"]
[BlackFideId "14112906"]
[WhiteElo "2551"]
[BlackElo "2577"]
[Result "0-1"]
[Round "02"]
[TimeControl "180+1"]
[Date "2021.06.01"]
[WhiteClock "0:00:07"]
[BlackClock "0:01:18"]

1. d4 {[%clk 0:03:00]}  Nf6 {[%clk 0:02:59]} 2. Nf3 {[%clk 0:02:59]}  e6 {[%clk 0:02:59]} 3. e3 {[%clk 0:02:59]}  c5 {[%clk 0:02:58]} 4. c3 {[%clk 0:02:57]}  b6 {[%clk 0:02:57]} 5. Bd3 {[%clk 0:02:56]}  Bb7 {[%clk 0:02:58]} 6. O-O {[%clk 0:02:56]}  Be7 {[%clk 0:02:58]} 7. Nbd2 {[%clk 0:02:57]}  d5 {[%clk 0:02:57]} 8. b3 {[%clk 0:02:57]}  O-O {[%clk 0:02:55]} 9. Bb2 {[%clk 0:02:57]}  Nc6 {[%clk 0:02:54]} 10. Qe2 {[%clk 0:02:57]}  Rc8 {[%clk 0:02:53]} 11. Rac1 {[%clk 0:02:56]}  Qc7 {[%clk 0:02:51]} 12. Rfd1 {[%clk 0:02:52]}  cxd4 {[%clk 0:02:46]} 13. exd4 {[%clk 0:02:49]}  Bd6 {[%clk 0:02:43]} 14. h3 {[%clk 0:02:44]}  Rfe8 {[%clk 0:02:40]} 15. c4 {[%clk 0:02:44]}  dxc4 {[%clk 0:02:34]} 16. bxc4 {[%clk 0:02:37]}  Bf4 {[%clk 0:02:34]} 17. a3 {[%clk 0:02:27]}  Qb8 {[%clk 0:02:29]} 18. Rc2 {[%clk 0:02:26]}  Ne7 {[%clk 0:02:27]} 19. Ne4 {[%clk 0:02:15]}  Nxe4 {[%clk 0:02:22]} 20. Bxe4 {[%clk 0:02:16]}  Bxe4 {[%clk 0:02:18]} 21. Qxe4 {[%clk 0:02:17]}  Ng6 {[%clk 0:02:18]} 22. Bc1 {[%clk 0:01:40]}  Bxc1 {[%clk 0:02:15]} 23. Rdxc1 {[%clk 0:01:41]}  Red8 {[%clk 0:02:13]} 24. c5 {[%clk 0:01:36]}  h6 {[%clk 0:02:10]} 25. c6 {[%clk 0:01:13]}  Qf4 {[%clk 0:02:07]} 26. Qe2 {[%clk 0:00:48]}  Qd6 {[%clk 0:02:04]} 27. Ne5 {[%clk 0:00:44]}  Nxe5 {[%clk 0:01:50]} 28. dxe5 {[%clk 0:00:32]}  Qxa3 {[%clk 0:01:47]} 29. c7 {[%clk 0:00:27]}  Rd5 {[%clk 0:01:44]} 30. Rd1 {[%clk 0:00:20]}  Qe7 {[%clk 0:01:30]} 31. Rdc1 {[%clk 0:00:15]}  Rc5 {[%clk 0:01:28]} 32. Rxc5 {[%clk 0:00:11]}  bxc5 {[%clk 0:01:29]} 33. Qa6 {[%clk 0:00:10]}  Qxc7 {[%clk 0:01:29]} 34. Rb1 {[%clk 0:00:09]}  Rd8 {[%clk 0:01:25]} 35. Rb7 {[%clk 0:00:08]}  Qxe5 {[%clk 0:01:24]} 36. g3 {[%clk 0:00:07]}  Rd1+ {[%clk 0:01:21]} 37. Kh2 {[%clk 0:00:07]}  Qe4 {[%clk 0:01:18]} 0-1


[Site "https://www.chess.com"]

[Event "Titled Tuesday Blitz June 1 2021"]
[White "Milosevic, Milos"]
[Black "Urazayev, Arystanbek"]
[WhiteFideId "964875"]
[BlackFideId "13709810"]
[WhiteElo "2135"]
[BlackElo "2321"]
[Result "0-1"]
[Round "02"]
[TimeControl "180+1"]
[Date "2021.06.01"]
[WhiteClock "0:00:05"]
[BlackClock "0:01:25"]

1. e4 {[%clk 0:03:00]}  c5 {[%clk 0:03:00]} 2. Nf3 {[%clk 0:03:00]}  e6 {[%clk 0:03:00]} 3. Nc3 {[%clk 0:02:59]}  Nc6 {[%clk 0:02:57]} 4. d4 {[%clk 0:02:58]}  cxd4 {[%clk 0:02:58]} 5. Nxd4 {[%clk 0:02:59]}  Nf6 {[%clk 0:02:59]} 6. a3 {[%clk 0:02:56]}  Qc7 {[%clk 0:02:58]} 7. Be2 {[%clk 0:02:53]}  a6 {[%clk 0:02:58]} 8. O-O {[%clk 0:02:53]}  b5 {[%clk 0:02:58]} 9. Be3 {[%clk 0:02:28]}  Bb7 {[%clk 0:02:57]} 10. f4 {[%clk 0:02:24]}  Nxd4 {[%clk 0:02:47]} 11. Qxd4 {[%clk 0:02:25]}  d6 {[%clk 0:02:48]} 12. a4 {[%clk 0:01:45]}  e5 {[%clk 0:02:33]} 13. Qd3 {[%clk 0:01:32]}  b4 {[%clk 0:02:29]} 14. Nd5 {[%clk 0:01:33]}  Bxd5 {[%clk 0:02:30]} 15. exd5 {[%clk 0:01:34]}  Be7 {[%clk 0:02:21]} 16. c3 {[%clk 0:01:02]}  e4 {[%clk 0:02:20]} 17. Qd2 {[%clk 0:01:02]}  bxc3 {[%clk 0:02:21]} 18. bxc3 {[%clk 0:01:03]}  O-O {[%clk 0:02:19]} 19. Rfb1 {[%clk 0:00:50]}  Nd7 {[%clk 0:02:17]} 20. a5 {[%clk 0:00:36]}  f5 {[%clk 0:02:16]} 21. Ra4 {[%clk 0:00:21]}  Rfc8 {[%clk 0:02:10]} 22. c4 {[%clk 0:00:17]}  Nc5 {[%clk 0:02:08]} 23. Ra2 {[%clk 0:00:13]}  Rab8 {[%clk 0:02:05]} 24. Rab2 {[%clk 0:00:13]}  Bf6 {[%clk 0:02:01]} 25. Rb6 {[%clk 0:00:13]}  Nd7 {[%clk 0:01:58]} 26. Rxb8 {[%clk 0:00:10]}  Rxb8 {[%clk 0:01:58]} 27. Rxb8+ {[%clk 0:00:08]}  Qxb8 {[%clk 0:01:59]} 28. c5 {[%clk 0:00:07]}  Nxc5 {[%clk 0:01:51]} 29. Bxc5 {[%clk 0:00:07]}  dxc5 {[%clk 0:01:48]} 30. Bxa6 {[%clk 0:00:07]}  Qb1+ {[%clk 0:01:26]} 31. Bf1 {[%clk 0:00:05]}  Bd4+ {[%clk 0:01:25]} 0-1


[Site "https://www.chess.com"]

[Event "Titled Tuesday Blitz June 1 2021"]
[White "Moroni, Luca Jr"]
[Black "Brankovic, Dejan"]
[WhiteFideId "865834"]
[BlackFideId "921602"]
[WhiteElo "2491"]
[BlackElo "2237"]
[Result "1-0"]
[Round "02"]
[TimeControl "180+1"]
[Date "2021.06.01"]
[WhiteClock "0:00:49"]
[BlackClock "0:00:53"]

1. d4 {[%clk 0:03:00]}  Nf6 {[%clk 0:02:59]} 2. c4 {[%clk 0:03:00]}  g6 {[%clk 0:02:59]} 3. Nc3 {[%clk 0:03:00]}  Bg7 {[%clk 0:03:00]} 4. e4 {[%clk 0:03:00]}  d6 {[%clk 0:03:00]} 5. Bd3 {[%clk 0:03:00]}  O-O {[%clk 0:03:01]} 6. Nge2 {[%clk 0:03:01]}  e5 {[%clk 0:02:57]} 7. d5 {[%clk 0:03:01]}  c6 {[%clk 0:02:57]} 8. O-O {[%clk 0:03:00]}  cxd5 {[%clk 0:02:58]} 9. cxd5 {[%clk 0:03:01]}  Na6 {[%clk 0:02:56]} 10. f3 {[%clk 0:02:57]}  Nc5 {[%clk 0:02:56]} 11. Bc2 {[%clk 0:02:54]}  a5 {[%clk 0:02:55]} 12. Be3 {[%clk 0:02:53]}  b6 {[%clk 0:02:43]} 13. a3 {[%clk 0:02:52]}  a4 {[%clk 0:02:35]} 14. Nxa4 {[%clk 0:02:45]}  Ba6 {[%clk 0:02:28]} 15. Nac3 {[%clk 0:02:26]}  Nh5 {[%clk 0:02:24]} 16. b4 {[%clk 0:02:24]}  Nd7 {[%clk 0:02:22]} 17. Bd3 {[%clk 0:01:57]}  Nf4 {[%clk 0:02:09]} 18. Bxa6 {[%clk 0:01:49]}  Rxa6 {[%clk 0:02:08]} 19. Nb5 {[%clk 0:01:34]}  Nb8 {[%clk 0:01:29]} 20. Nxf4 {[%clk 0:01:30]}  exf4 {[%clk 0:01:29]} 21. Bd4 {[%clk 0:01:31]}  Bxd4+ {[%clk 0:01:21]} 22. Qxd4 {[%clk 0:01:31]}  Qd7 {[%clk 0:01:16]} 23. Qd3 {[%clk 0:01:24]}  Ra8 {[%clk 0:01:11]} 24. Rac1 {[%clk 0:01:21]}  Na6 {[%clk 0:01:10]} 25. Rc6 {[%clk 0:01:20]}  Nb8 {[%clk 0:01:05]} 26. Rxd6 {[%clk 0:01:15]}  Qb7 {[%clk 0:01:03]} 27. e5 {[%clk 0:01:12]}  Nd7 {[%clk 0:01:03]} 28. e6 {[%clk 0:01:10]}  Ne5 {[%clk 0:01:01]} 29. Qd4 {[%clk 0:01:05]}  f6 {[%clk 0:01:01]} 30. Rxb6 {[%clk 0:01:00]}  Qc8 {[%clk 0:00:57]} 31. e7 {[%clk 0:00:58]}  Re8 {[%clk 0:00:55]} 32. Nd6 {[%clk 0:00:55]}  Qd7 {[%clk 0:00:53]} 33. Nxe8 {[%clk 0:00:55]}  Rxe8 {[%clk 0:00:53]} 34. d6 {[%clk 0:00:49]} 1-0


[Site "https://www.chess.com"]